fUSD/lending_fUSD_20240220
["ID","MTS","AMOUNT","RATE_DAILY","PERIOD"]
[314598976,1708443042690,-168.0,0.00045685,90]
[314598978,1708443042702,-176.54,0.00045702,2]
[314598980,1708443042713,-1302.76127592,0.00045873,7]
[314598982,1708443042723,-1408.5916966,0.00045894,2]
[314598984,1708443042736,-1386.79913177,0.000459,7]
[314598986,1708443042746,-176.54,0.00045931,2]
[314598988,1708443042756,-29744.0,0.0004598,7]
[314598990,1708443042766,-2000.0,0.00046,2]
[314598992,1708443042776,-2495.0,0.00046,31]
[314598994,1708443042787,-11954.56,0.00046,30]
[314598997,1708443042797,-1000.0,0.00046,2]
[314598999,1708443042807,-1408.5916966,0.00046028,2]
[314599001,1708443042816,-150.0,0.00046086,2]
[314599004,1708443042825,-294.33,0.00046106,15]
[314599006,1708443042835,-3790.34461141,0.0004611,2]
[314599008,1708443042845,-176.54,0.00046159,2]
[314599010,1708443042855,-515.0420984,0.00046201,5]
[314599012,1708443042864,-164.84,0.00046269,2]
[314599014,1708443042874,-246.37042164,0.00046291,12]
[314599016,1708443042883,-4611.78626422,0.00046291,10]
[314599019,1708443042900,-19658.98486046,0.00046291,10]
[314599022,1708443042911,-2501.75482878,0.00046291,10]
[314599025,1708443042922,-111917.16871954,0.00046291,10]
[314599029,1708443042932,-185901.855664,0.00046301,30]
[314599031,1708443042944,-4193.20011058,0.00046301,30]
[314599034,1708443042958,-1978.90521346,0.00046301,30]
[314599064,1708443043087,-155.0,0.00027524,2]
[314599067,1708443043099,-2500.0,0.00046191,2]
[314599070,1708443043110,-283.3542014,0.00046301,30]
[314599080,1708443043181,-4305.12831696,0.00046301,30]
[314599085,1708443043216,-91.52928743,0.00046301,30]
[314599087,1708443043230,-175049.73853417,0.00046301,30]
[314599089,1708443043240,-1386.79913177,0.00046344,8]
[314599091,1708443043250,-1366.99670319,0.00046355,2]
[314599092,1708443043260,-14279.02221019,0.00046374,2]
[314599094,1708443043271,-307.38328036,0.00046374,2]
[314599097,1708443043283,-3532.9188177,0.00046374,2]
[314599099,1708443043292,-176.54,0.00046388,2]
[314599101,1708443043301,-173.5,0.00046466,2]
[314599102,1708443043311,-153.2336426,0.0004647,31]
[314599105,1708443043320,-655.7467,0.00046475,120]
[314599107,1708443043330,-3601.68600713,0.000465,10]
[314599109,1708443043339,-12294.14203257,0.000465,120]
[314599111,1708443043351,-605.87030786,0.000465,120]
[314599113,1708443043363,-3053.36844732,0.000465,120]
[314599116,1708443043381,-5459.61186859,0.000465,120]
[314599119,1708443043407,-15917.96323087,0.000465,120]
[314599132,1708443043515,-2096.094,0.000465,120]
[314599135,1708443043527,-86.48103147,0.000465,120]
[314599137,1708443043536,-228.84078802,0.00046544,8]
[314599156,1708443043705,-1073.9204879,0.00046544,8]
[314599159,1708443043714,-38964.25173186,0.00046555,10]
[314599161,1708443043726,-600.66605365,0.00046555,10]
[314599163,1708443043737,-833.79910387,0.00046555,10]
[314599165,1708443043747,-280.5507,0.00046555,10]
[314599168,1708443043759,-368.92800001,0.00046555,10]
[314599170,1708443043770,-289.698,0.00046555,10]
[314599172,1708443043782,-261.28130021,0.00046555,10]
[314599174,1708443043794,-265.3825,0.00046555,10]
[314599228,1708443046184,-556.6017304,0.0004308,2]
[314599229,1708443046194,-250.96,0.0004452,10]
[314599230,1708443046206,-115.08826923,0.00045,120]
[314599231,1708443046218,-1044.9,0.00045,120]
[314599232,1708443046231,-261.31235588,0.00045,120]
[314599233,1708443046243,-7698.63699295,0.00045,120]
[314599234,1708443046256,-2521.33154629,0.00045,120]
[314599235,1708443046271,-2683.01266004,0.00045,120]
[314599236,1708443046284,-2922.36022768,0.00045,120]
[314599237,1708443046298,-2041.00631754,0.00045,120]
[314599238,1708443046340,-1481.49757586,0.00045,120]
[314599239,1708443046926,-3628.44701101,0.00044999,2]
[314599240,1708443046941,-23619.98830853,0.00044999,2]
[314599241,1708443047022,-489.85071868,0.00044999,2]
[314599242,1708443047106,-601.3761831,0.00044999,2]
[314599243,1708443047122,-7390.99864844,0.00044999,2]
[314599244,1708443047136,-59909.67699425,0.00045,120]
[314599245,1708443047166,-4836.49995,0.00045,120]
[314599246,1708443047180,-29256.9999999,0.00045,120]
[314599247,1708443047194,-2616.96942512,0.00045,120]
[314599248,1708443047219,-534.0,0.00045,120]
[314599249,1708443047235,-2001.2292696,0.00045,120]
[314599250,1708443047248,-977.52,0.00045,120]
[314599251,1708443047263,-4648.62685,0.00045,120]
[314599252,1708443047280,-417.0,0.00045,120]
[314599253,1708443047294,-463.2744084,0.00045,120]
[314599254,1708443047307,-1060.81074276,0.00045,120]
[314599255,1708443047321,-825.49998224,0.00045,120]
[314599256,1708443047355,-1247.199999,0.00045,120]
[314599257,1708443047368,-362.52603894,0.00045,120]
[314599258,1708443047386,-2164.011688,0.00045,120]
[314599263,1708443346922,544.0,0.00025,3]
[314599264,1708443346946,206.0,0.00025,3]
[314599266,1708443348010,800.0,0.00027,3]
[314599269,1708443781130,-500.0,0.00028698,2]
[314599270,1708443801886,-162.510664,0.00028685,2]
[314599272,1708443815151,-250.0,0.00028696,2]
[314599275,1708444150162,-1068.4209961,0.00028586,2]
[314599276,1708444150181,-516.12543914,0.00028587,2]
[314599277,1708444150200,-580.17251638,0.00028587,2]
[314599278,1708444150220,-253.90360949,0.0002859,2]
[314599279,1708444150239,-925.0935,0.00028595,2]
[314599280,1708444150259,-162.51066399,0.00028599,2]
[314599281,1708444150278,-250.50057331,0.00028699,2]
[314599282,1708444150297,-671.31011579,0.000287,2]
[314599283,1708444150316,-850.0,0.00029,3]
[314599284,1708444150334,-900.0,0.00031,3]
[314599285,1708444150356,-172.04290588,0.0003375,4]
[314599286,1708444150378,-400.0,0.00034898,3]
[314599287,1708444150399,-499.99,0.00034899,2]
[314599288,1708444150419,-3507.72,0.00034899,20]
[314599289,1708444150438,-3059.37,0.00034899,2]
[314599290,1708444150459,-1987.32,0.000349,2]
[314599291,1708444150478,-302.29,0.000349,2]
[314599292,1708444150498,-595.15,0.000349,2]
[314599293,1708444150518,-299.999999,0.00035,36]
[314599294,1708444150539,-701.02918323,0.00036595,4]
[314599295,1708444150559,-465.41,0.00036596,2]
[314599296,1708444150579,-150.0,0.000367,2]
[314599297,1708444150600,-293.35,0.00038407,2]
[314599298,1708444150622,-152.14,0.000398,3]
[314599299,1708444150644,-152.14,0.000398,3]
[314599300,1708444150665,-152.14,0.000398,3]
[314599301,1708444150686,-152.14,0.000398,3]
[314599302,1708444150709,-152.14,0.000398,3]
[314599303,1708444150732,-3344.66225878,0.0003989,12]
[314599304,1708444150753,-3747.11945992,0.00039903,14]
[314599305,1708444150774,-1094.33397491,0.0003991,8]
[314599306,1708444150795,-30699.9976898,0.0004,7]
[314599307,1708444150815,-293.35,0.00040671,2]
[314599308,1708444150834,-538.87,0.00040828,2]
[314599309,1708444150854,-3185.69,0.00040868,2]
[314599310,1708444150873,-250.0,0.00040876,2]
[314599311,1708444150892,-166.6,0.00040876,2]
[314599312,1708444150912,-250.0,0.00040879,4]
[314599313,1708444150931,-151.86,0.00040916,2]
[314599314,1708444150951,-2000.0,0.00040939,2]
[314599315,1708444150984,-267.03,0.00041007,15]
[314599316,1708444151003,-1135.73865755,0.00041022,2]
[314599332,1708444232207,-2084.9115,0.000348,2]
[314599333,1708444232216,-150.0,0.00040939,2]
[314599334,1708444232226,-150.0,0.00040947,2]
[314599335,1708444232238,-150.0,0.00040964,2]
[314599336,1708444232248,-250.0,0.00040964,2]
[314599337,1708444232257,-464.1380131,0.00041005,4]
[314599338,1708444232269,-783.72776714,0.00041005,4]
[314599339,1708444232281,-254.89647261,0.00041005,4]
[314599340,1708444232290,-150.0,0.00041006,2]
[314599341,1708444232299,-150.0,0.00041006,2]
[314599342,1708444232309,-716.68134245,0.00041022,2]
[314599343,1708444232319,-150.0,0.00041029,2]
[314599344,1708444232329,-150.0,0.00041029,2]
[314599345,1708444232338,-166.49,0.00041183,2]
[314599346,1708444232347,-800.0,0.00041282,2]
[314599347,1708444232357,-411.18,0.00041359,2]
[314599348,1708444232366,-7372.16665009,0.00041451,2]
[314599349,1708444232378,-622.67114989,0.00041451,2]
[314599350,1708444232393,-405.96666809,0.00041451,2]
[314599351,1708444232405,-2570.32116,0.00041451,2]
[314599352,1708444232418,-288.445,0.00041451,2]
[314599353,1708444232430,-312.37220644,0.00041451,2]
[314599354,1708444232446,-2077.68716549,0.00041451,2]
[314599355,1708444232457,-250.0,0.00041457,2]
[314599356,1708444232468,-166.49,0.0004149,2]
[314599357,1708444232477,-166.49,0.00041796,2]
[314599358,1708444232487,-150.0,0.00041799,2]
[314599359,1708444232496,-150.0,0.00041799,2]
[314599360,1708444232507,-166.49,0.00042103,2]
[314599361,1708444232520,-427.27745055,0.00042104,4]
[314599362,1708444232529,-2598.0,0.000422,3]
[314599366,1708444232538,-152.14,0.000422,4]
[314599370,1708444232548,-152.14,0.000422,4]
[314599373,1708444232557,-152.14,0.000422,4]
[314599376,1708444232568,-152.14,0.000422,4]
[314599379,1708444232577,-152.14,0.000422,4]
[314599382,1708444232587,-156.83,0.00042305,2]
[314599384,1708444232597,-166.49,0.00042409,2]
[314599385,1708444232607,-150.24,0.00042411,2]
[314599386,1708444232616,-2705.0,0.00042459,120]
[314599387,1708444232625,-538.87,0.00042471,2]
[314599388,1708444232635,-158.51,0.00042667,2]
[314599389,1708444232644,-166.49,0.00042716,2]
[314599390,1708444232653,-156.83,0.00042728,2]
[314599391,1708444232662,-1920.49590495,0.00042899,7]
[314599392,1708444232672,-423.21889983,0.00042899,7]
[314599393,1708444232682,-172.96143691,0.00042899,7]
[314599394,1708444232691,-913.63565312,0.00042899,7]
[314599395,1708444232701,-241.36356531,0.00042899,7]
[314599396,1708444232710,-293.35,0.00042935,2]
[314599397,1708444232719,-166.49,0.00043022,2]
[314599398,1708444232729,-156.83,0.00043151,2]
[314599399,1708444232738,-166.49,0.00043329,2]
[314599400,1708444232748,-208.0,0.00043416,10]
[314599401,1708444232757,-14846.76039461,0.000435,2]
[314599402,1708444232769,-1141.89,0.00043566,2]
[314599403,1708444232779,-156.83,0.00043574,2]
[314599404,1708444232788,-941.39457284,0.000436,2]
[314599405,1708444232797,-43478.19884665,0.000437,2]
[314599406,1708444232807,-9912.4528,0.0004378,2]
[314599407,1708444232816,-2379.45414374,0.000438,30]
[314599408,1708444232828,-2630.78331722,0.000438,30]
[314599409,1708444232839,-301.35353048,0.000438,30]
[314599410,1708444232850,-306.96062069,0.000438,30]
[314599411,1708444232876,-381.44838787,0.000438,30]
[314599412,1708444232885,-819.16301513,0.000438,2]
[314599413,1708444232895,-3557.78712338,0.0004388,2]
[314599414,1708444232906,-337.5501158,0.0004388,2]
[314599424,1708444241030,-406.96319213,0.000438,2]
[314599425,1708444241046,-1593.03680787,0.000438,2]
[314599426,1708444241056,-2234.1516273,0.0004388,2]
[314599427,1708444241065,-166.18,0.00043915,2]
[314599428,1708444241075,-200.0,0.00043933,2]
[314599429,1708444241085,-150.24,0.00043981,2]
[314599430,1708444241094,-156.83,0.00043997,2]
[314599431,1708444241103,-3999.99998945,0.00044,2]
[314599432,1708444241113,-538.87,0.00044115,2]
[314599433,1708444241123,-941.39457282,0.00044249,2]
[314599434,1708444241132,-9400.8771614,0.00044299,2]
[314599435,1708444241143,-2995.38500047,0.00044299,2]
[314599436,1708444241155,-13153.45261,0.00044299,2]
[314599437,1708444241171,-5138.40681789,0.00044299,2]
[314599438,1708444241217,-52.69349066,0.00044299,2]
[314599439,1708444241273,-1004.41036019,0.00044299,2]
[314599440,1708444241284,-11732.97340603,0.00044299,2]
[314599441,1708444241293,-1237.4246599,0.000443,6]
[314599442,1708444241302,-150.0,0.00044313,2]
[314599443,1708444241311,-439.77,0.0004438,2]
[314599444,1708444241321,-2000.0,0.000444,2]
[314599445,1708444241330,-156.83,0.0004442,2]
[314599446,1708444241339,-152.14,0.000446,5]
[314599447,1708444241350,-152.14,0.000446,5]
[314599448,1708444241359,-152.14,0.000446,5]
[314599449,1708444241368,-152.14,0.000446,5]
[314599450,1708444241378,-152.14,0.000446,5]
[314599451,1708444241388,-267.03,0.00044743,15]
[314599452,1708444241398,-3160.4202,0.00044789,2]
[314599453,1708444241408,-334.66160678,0.00044798,4]
[314599454,1708444241418,-525.84602138,0.00044798,4]
[314599455,1708444241428,-563.59620564,0.00044798,4]
[314599456,1708444241438,-515.7127113,0.00044799,4]
[314599457,1708444241448,-877.708,0.000448,2]
[314599458,1708444241458,-3328.21615847,0.000448,6]
[314599459,1708444241468,-152.0,0.00044804,3]
[314599460,1708444241478,-156.83,0.00044843,2]
[314599461,1708444241488,-209.14,0.00044888,10]
[314599462,1708444241497,-173.05609074,0.00044898,12]
[314599463,1708444241506,-7632.2260853,0.00044898,2]
[314599464,1708444241518,-3583.39159821,0.00044898,2]
[314599466,1708444241537,-333.75999999,0.00044898,2]
[314599467,1708444241999,-375.65476719,0.00044898,2]
[314599468,1708444242070,-31553.16639595,0.00044898,2]
[314599469,1708444242080,-941.39457282,0.00044898,2]
[314599470,1708444242089,-8963.6627,0.000449,2]
[314599471,1708444242098,-629.22249222,0.000449,17]
[314599472,1708444242107,-515.04209831,0.000449,5]
[314599473,1708444242116,-249.3871006,0.0004498,12]
[314599474,1708444242125,-1496.3226036,0.0004499,12]
[314599475,1708444242134,-174408.20901259,0.0004499,10]
[314599491,1708444243150,-945.41897268,0.0004499,10]
[314599495,1708444243228,-11516.87968903,0.0004499,10]
[314599496,1708444243239,-562.00000015,0.0004499,10]
[314599497,1708444243250,-14585.48041647,0.0004499,10]
[314599498,1708444243268,-380.24320854,0.0004499,10]
[314599499,1708444243283,-5144.9951024,0.0004499,10]
[314599500,1708444243332,-254.10306714,0.0004499,10]
[314599501,1708444243341,-155.0,0.00044998,4]
[314599502,1708444243350,-349.84077499,0.00044998,2]
[314599503,1708444243359,-474.75399034,0.00044998,4]
[314599504,1708444243368,-18548.20783169,0.00045,120]
[314599505,1708444243405,-6209.66566297,0.00045,120]
[314599506,1708444243421,-8258.69578689,0.00045,120]
[314599507,1708444243437,-823.864397,0.00045,120]
[314599508,1708444243547,-24365.6029779,0.00045,120]
[314599509,1708444243562,-11955.20439353,0.00045,120]
[314599510,1708444243577,-17315.49351,0.00045,120]
[314599511,1708444243594,-13833.184442,0.00045,120]
[314599512,1708444243607,-1750.85759773,0.00045,120]
[314599529,1708444246470,-683.2993904,0.00045,120]
[314599530,1708444246484,-467.43016111,0.00045,120]
[314599531,1708444246604,-5450.21135244,0.00045,120]
[314599532,1708444246617,-25802.22796033,0.00045,120]
[314599533,1708444246631,-9669.03273667,0.00045,120]
[314599534,1708444246647,-435.225,0.00045,120]
[314599535,1708444246695,-558.76368935,0.00045,120]
[314599536,1708444246711,-434.47005941,0.00045,120]
[314599537,1708444246769,-378.41523539,0.00045,120]
[314599539,1708444246844,-2581.85,0.00045,120]
[314599541,1708444246857,-1345.19708822,0.00045,120]
[314599544,1708444246871,-7464.02625058,0.00045,120]
[314599546,1708444246886,-2999.99999999,0.00045,120]
[314599552,1708444421143,4011.19493565,0.0002705,2]
[314599553,1708444431606,50774.483,0.00023,2]
[314599554,1708444445943,155.22142198,0.0002425,2]
[314599556,1708444460784,21384.70286979,0.000272,2]
[314599557,1708444465028,226.65688858,0.000137,2]
[314599558,1708444465097,218913.13844048,0.00028,2]
[314599561,1708444782800,155.0,0.00022,2]
[314599562,1708444800797,155.0,0.00022,2]
[314599563,1708444824797,155.0,0.00022,2]
[314599564,1708444846983,155.0,0.00022,2]
[314599566,1708444872941,155.0,0.00022,2]
[314599569,1708444896931,177.6526122,0.00022,2]
[314599580,1708445152851,750.0,0.00025,3]
[314599581,1708445153957,800.0,0.00027,3]
[314599583,1708445358135,-302.26988103,0.00028899,2]
[314599584,1708445358156,-230.43529803,0.000289,2]
[314599585,1708445358179,-850.0,0.00029,3]
[314599586,1708445358201,-1833.90062648,0.0003,7]
[314599603,1708445431349,-185.12725474,0.000299,2]
[314599604,1708445431360,-1038.62423975,0.00029999,2]
[314599605,1708445431371,-63.87629907,0.0003,7]
[314599606,1708445431464,-100.22307445,0.0003,7]
[314599607,1708445431479,-994.0,0.0003,10]
[314599608,1708445431490,-170.88,0.00031085,2]
[314599609,1708445431501,-158.74630449,0.00032738,2]
[314599610,1708445431512,-7379.71390543,0.00035,2]
[314599611,1708445431523,-730.60744046,0.00036,2]
[314599612,1708445431635,-564.19410245,0.00036,2]
[314599633,1708445437283,-1268.3571268,0.00036,2]
[314599634,1708445437395,-506.07875624,0.00036,2]
[314599635,1708445437409,-5256.76107038,0.00036,2]
[314599636,1708445437418,-496.63,0.00036,2]
[314599637,1708445437427,-201.36,0.000367,2]
[314599638,1708445437436,-294.71,0.00037041,2]
[314599639,1708445437445,-299.99,0.00037696,30]
[314599640,1708445437454,-499.99,0.00037696,2]
[314599641,1708445437463,-406.12076147,0.00038412,4]
[314599642,1708445437473,-151.86,0.00038413,2]
[314599643,1708445437482,-583.8,0.00038586,2]
[314599644,1708445437491,-250.0,0.00038608,2]
[314599645,1708445437501,-2000.0,0.00038623,2]
[314599646,1708445437510,-1235.95,0.00038651,2]
[314599647,1708445437519,-200.0,0.00038661,2]
[314599648,1708445437528,-181.65,0.00038664,2]
[314599649,1708445437538,-2293.23,0.00038706,120]
[314599650,1708445437547,-500.0,0.00038739,2]
[314599651,1708445437557,-250.0,0.00038777,2]
[314599652,1708445437566,-1000.0,0.00038777,2]
[314599653,1708445437575,-16439.90294587,0.00038811,2]
[314599654,1708445437588,-4336.49705413,0.00038811,2]
[314599655,1708445437596,-222.52,0.00038829,15]
[314599656,1708445437606,-200.0,0.00038851,2]
[314599657,1708445437615,-439.14,0.00038877,2]
[314599658,1708445437624,-5958.48100064,0.000389,3]
[314599659,1708445437632,-466.82518879,0.000389,2]
[314599660,1708445437643,-533.17481121,0.000389,2]
[314599661,1708445437653,-342.65,0.00039071,2]
[314599663,1708445437661,-155.01,0.00039133,2]
[314599665,1708445437670,-192.841514,0.00039273,2]
[314599667,1708445437679,-188.378633,0.00039273,2]
[314599669,1708445437688,-275.705778,0.00039273,2]
[314599670,1708445437698,-187.453129,0.00039273,2]
[314599671,1708445437708,-159.38,0.00039303,2]
[314599672,1708445437717,-294.71,0.00039305,2]
[314599673,1708445437727,-180.28,0.00039438,2]
[314599674,1708445437737,-159.38,0.00039712,2]
[314599675,1708445437746,-275.705778,0.00039764,2]
[314599676,1708445437755,-152.22,0.000398,3]
[314599677,1708445437766,-152.22,0.000398,3]
[314599678,1708445437775,-2004.66511066,0.00039923,16]
[314599679,1708445437789,-9680.55047431,0.00039923,16]
[314599680,1708445437803,-747.95149953,0.00039923,16]
[314599681,1708445437814,-741.27723955,0.00039923,16]
[314599682,1708445437825,-420.8888349,0.00039923,16]
[314599683,1708445437836,-313.89851893,0.00039923,16]
[314599684,1708445437851,-929.5971481,0.00039923,16]
[314599685,1708445438253,-277.72499435,0.00039923,16]
[314599686,1708445438277,-1813.26692406,0.00039923,16]
[314599687,1708445438286,-3150.2296992,0.00039937,12]
[314599688,1708445438297,-1096.75342032,0.00039937,12]
[314599689,1708445438307,-1323.63072275,0.00039937,8]
[314599690,1708445438316,-583.8,0.00040013,2]
[314599691,1708445438326,-159.38,0.00040122,2]
[314599692,1708445438339,-154.31,0.00040185,2]
[314599693,1708445438348,-1038.62423975,0.00040237,4]
[314599694,1708445438357,-192.841514,0.00040255,2]
[314599695,1708445438366,-275.705778,0.00040255,2]
[314599696,1708445438375,-162.69,0.00040365,2]
[314599697,1708445438384,-439.14,0.00040521,2]
[314599698,1708445438393,-159.38,0.00040532,2]
[314599699,1708445438403,-3299.1907,0.00040566,2]
[314599700,1708445438412,-811.29176658,0.00040666,2]
[314599701,1708445438421,-6368.73100893,0.00040666,7]
[314599702,1708445438430,-4594.83096539,0.00040666,4]
[314599703,1708445438439,-932.9126782,0.00040666,120]
[314599704,1708445438449,-151.0,0.00040666,30]
[314599705,1708445438458,-275.705778,0.00040746,2]
[314599706,1708445438467,-171.22,0.00040848,2]
[314599707,1708445438478,-713.4755,0.00040869,2]
[314599708,1708445438487,-177.58,0.00040869,2]
[314599709,1708445438497,-2995.39454265,0.00040869,3]
[314599710,1708445438506,-1113.68219391,0.00040869,3]
[314599711,1708445438515,-2690.1691,0.0004088,2]
[314599712,1708445438525,-420.1978,0.0004088,2]
[314599713,1708445438534,-173.05609074,0.0004088,10]
[314599714,1708445438543,-515.04209831,0.0004088,5]
[314599715,1708445438553,-535.45956322,0.0004088,2]
[314599716,1708445438562,-629.22249222,0.0004088,13]
[314599717,1708445438571,-159.38,0.00040941,2]
[314599718,1708445438580,-17183.09154513,0.00040969,11]
[314599719,1708445438592,-2592.0517844,0.00040969,11]
[314599720,1708445438605,-412.78500001,0.00040969,11]
[314599722,1708445438616,-3461.11324065,0.00040969,11]
[314599724,1708445439996,-174.28,0.0004087,10]
[314599725,1708445440007,-6710.85969888,0.00040969,11]
[314599726,1708445440018,-261.0999939,0.00040969,11]
[314599727,1708445440790,-69328.22072723,0.00040969,11]
[314599728,1708445440800,-83982.8639093,0.00040969,6]
[314599729,1708445440811,-27867.07810386,0.0004097,6]
[314599730,1708445440823,-18449.97687226,0.0004097,6]
[314599731,1708445440834,-24651.49232857,0.0004097,6]
[314599732,1708445440847,-1317.14020594,0.0004097,6]
[314599733,1708445440861,-11697.17639867,0.0004097,6]
[314599734,1708445440871,-1148.01449149,0.00040978,2]
[314599735,1708445440881,-8472.5737348,0.00040979,4]
[314599736,1708445440897,-1497.97977919,0.00040979,4]
[314599737,1708445440909,-2740.0,0.00040979,4]
[314599750,1708445442392,-17313.91156073,0.00040979,4]
[314599751,1708445442439,-6828.8547626,0.00040979,4]
[314599756,1708445442499,-113759.26500281,0.00040979,4]
[314599757,1708445442509,-303443.01206898,0.00040979,4]
[314599758,1708445442614,-519.72736454,0.00040979,4]
[314599759,1708445442626,-724.41329783,0.00040979,4]
[314599760,1708445442637,-16368.2145128,0.00040979,4]
[314599761,1708445442674,-1675.58343939,0.00040979,4]
[314599762,1708445442686,-14901.25999806,0.00040979,4]
[314599768,1708445445380,-4462.36755,0.00040979,4]
[314599769,1708445445393,-10794.29754774,0.00040979,4]
[314599770,1708445445443,-704.68531707,0.00040979,4]
[314599771,1708445445454,-3289.09678362,0.00040979,4]
[314599772,1708445445466,-1827.64971345,0.00040979,4]
[314599773,1708445445480,-5166.49193599,0.00040979,4]
[314599774,1708445445491,-25139.67319691,0.00040979,4]
[314599775,1708445445503,-2202.40988258,0.00040979,4]
[314599776,1708445445558,-505.40595551,0.00040979,4]
[314599777,1708445445569,-5660.62931269,0.00040979,4]
[314599778,1708445445737,-28241.11928934,0.00040979,4]
[314599779,1708445445748,-614.11999,0.00040979,4]
[314599789,1708446406174,-184.67076206,0.00034499,4]
[314599790,1708446556114,-406.12076147,0.00034419,4]
[314599791,1708446556137,-158.69061251,0.0003442,2]
[314599792,1708446556156,-693.45068598,0.00034495,4]
[314599793,1708446556176,-2133.49161652,0.00034519,4]
[314599794,1708446556196,-548.002826,0.0003452,2]
[314599795,1708446556217,-1469.19,0.00034522,2]
[314599796,1708446556236,-881.46864569,0.00034525,4]
[314599797,1708446556259,-822.004239,0.00034794,2]
[314599798,1708446556278,-400.0,0.0003493,3]
[314599799,1708446556301,-1096.005652,0.00034931,2]
[314599800,1708446556319,-1370.007065,0.00035068,2]
[314599801,1708446556342,-1918.009892,0.00035342,2]
[314599802,1708446556362,-158.69061245,0.00035853,2]
[314599803,1708446556383,-158.69061245,0.00037285,2]
[314599804,1708446556402,-377.03,0.00037381,2]
[314599805,1708446556422,-560.0,0.00037455,3]
[314599806,1708446556441,-499.99,0.00038676,2]
[314599807,1708446556461,-158.69061245,0.00038718,2]
[314599808,1708446556480,-624.91,0.00038927,15]
[314599809,1708446556500,-153.61,0.00038976,2]
[314599810,1708446556520,-250.0,0.00038976,2]
[314599811,1708446556540,-292.76,0.00038976,2]
[314599812,1708446556559,-371.79168688,0.00039087,2]
[314599825,1708446631544,-628.20831312,0.00039087,2]
[314599826,1708446631554,-178.25,0.00039102,2]
[314599827,1708446631563,-230.34148304,0.00039172,2]
[314599829,1708446631600,-984.64851696,0.00039172,2]
[314599830,1708446631610,-2000.0,0.00039198,2]
[314599831,1708446631620,-500.0,0.00039216,2]
[314599832,1708446631633,-350.28,0.0003922,2]
[314599833,1708446631642,-246.01,0.00039222,2]
[314599834,1708446631652,-250.0,0.00039298,2]
[314599835,1708446631662,-158.75,0.00039399,2]
[314599836,1708446631671,-208.0,0.00039489,2]
[314599837,1708446631680,-153.61,0.00039533,2]
[314599838,1708446631690,-162.8043801,0.00039568,2]
[314599839,1708446631699,-377.03,0.00039645,2]
[314599840,1708446631708,-400.0,0.00039799,5]
[314599841,1708446631717,-690.17,0.000398,3]
[314599842,1708446631727,-690.17,0.000398,3]
[314599843,1708446631736,-690.17,0.000398,3]
[314599844,1708446631745,-690.17,0.000398,3]
[314599845,1708446631754,-690.17,0.000398,3]
[314599846,1708446631764,-690.17,0.000398,3]
[314599847,1708446631773,-690.17,0.000398,3]
[314599848,1708446631783,-690.17,0.000398,3]
[314599849,1708446631792,-690.17,0.000398,3]
[314599850,1708446631801,-690.17,0.000398,3]
[314599851,1708446631811,-690.17,0.000398,3]
[314599852,1708446631820,-690.17,0.000398,3]
[314599853,1708446631829,-690.17,0.000398,3]
[314599854,1708446631837,-690.17,0.000398,3]
[314599855,1708446631846,-690.17,0.000398,3]
[314599856,1708446631856,-690.17,0.000398,3]
[314599857,1708446631865,-690.17,0.000398,3]
[314599858,1708446631874,-690.17,0.000398,3]
[314599859,1708446631885,-690.17,0.000398,3]
[314599860,1708446631894,-690.17,0.000398,3]
[314599861,1708446631903,-952.23,0.00039829,2]
[314599862,1708446631912,-4357.29936526,0.00039944,14]
[314599863,1708446631922,-2189.47278126,0.00039958,13]
[314599864,1708446631930,-929.70361873,0.00039966,9]